fUSD/lending_fUSD_20250716
["ID","MTS","AMOUNT","RATE_DAILY","PERIOD"]
[372407890,1752633043569,-460.0,0.00021917,2]
[372407891,1752633043579,-2007.390005,0.00021917,2]
[372407892,1752633043590,-460.0,0.00021917,2]
[372407893,1752633043603,-460.0,0.00021917,2]
[372407894,1752633043612,-2908.7928,0.00021917,2]
[372407896,1752633043622,-1227.99,0.00021917,2]
[372407898,1752633043632,-459.46283553,0.00021917,2]
[372407900,1752633043642,-597.27,0.00021917,2]
[372407902,1752633043652,-858.08,0.00021917,2]
[372407903,1752633043663,-151.0,0.00021917,2]
[372407904,1752633043673,-151.0,0.00021917,2]
[372407905,1752633043682,-461.08970736,0.00021917,2]
[372407906,1752633043692,-186.323779,0.00021917,2]
[372407907,1752633043702,-460.0,0.00021917,2]
[372407909,1752633043712,-460.0,0.00021917,2]
[372407911,1752633043722,-154.02629471,0.00021917,2]
[372407912,1752633043734,-460.41,0.00021917,2]
[372407913,1752633043744,-508.41,0.00021917,2]
[372407914,1752633043753,-460.0,0.00021917,2]
[372407915,1752633043763,-151.0,0.00021917,2]
[372407916,1752633043773,-460.0,0.00021917,2]
[372407917,1752633043783,-151.0,0.00021917,2]
[372407918,1752633043793,-151.0,0.00021917,2]
[372407919,1752633043802,-151.0,0.00021917,2]
[372407920,1752633043811,-151.0,0.00021917,2]
[372407921,1752633043821,-151.0,0.00021917,2]
[372407922,1752633043831,-151.0,0.00021917,2]
[372407923,1752633043842,-151.0,0.00021917,2]
[372407924,1752633043851,-151.0,0.00021917,2]
[372407925,1752633043861,-151.0,0.00021917,2]
[372407926,1752633043871,-151.0,0.00021917,2]
[372407927,1752633043880,-280.697268,0.00021917,2]
[372407928,1752633043889,-151.0,0.00021917,2]
[372407929,1752633043899,-151.0,0.00021917,2]
[372407930,1752633043909,-151.0,0.00021917,2]
[372407931,1752633043919,-151.0,0.00021917,2]
[372407932,1752633043930,-477.24,0.00021917,2]
[372407933,1752633043942,-460.0,0.00021917,2]
[372407934,1752633043952,-151.0,0.00021917,2]
[372407935,1752633043962,-151.0,0.00021917,2]
[372407936,1752633043971,-460.0,0.00021917,2]
[372407937,1752633043981,-151.0,0.00021917,2]
[372407938,1752633043992,-151.0,0.00021917,2]
[372407939,1752633044001,-151.0,0.00021917,2]
[372407940,1752633044011,-151.0,0.00021917,2]
[372407941,1752633044020,-460.0,0.00021917,2]
[372407942,1752633044030,-151.0,0.00021917,2]
[372407943,1752633044040,-673.187052,0.00021917,2]
[372407944,1752633044050,-151.0,0.00021917,2]
[372407945,1752633044059,-151.0,0.00021917,2]
[372407946,1752633044069,-673.187052,0.00021917,2]
[372407947,1752633044078,-153.368387,0.00021917,2]
[372407948,1752633044088,-151.0,0.00021917,2]
[372407949,1752633044098,-673.187052,0.00021917,2]
[372407950,1752633044108,-151.0,0.00021917,2]
[372407951,1752633044119,-673.187052,0.00021917,2]
[372407952,1752633044129,-460.0,0.00021917,2]
[372407953,1752633044139,-151.0,0.00021917,2]
[372407954,1752633044151,-151.0,0.00021917,2]
[372407955,1752633044162,-151.0,0.00021917,2]
[372407956,1752633044173,-673.187052,0.00021917,2]
[372407957,1752633044185,-673.187052,0.00021917,2]
[372407958,1752633044195,-998.99,0.00021917,2]
[372407959,1752633044204,-944.28,0.00021917,2]
[372407960,1752633044214,-673.187052,0.00021917,2]
[372407961,1752633044224,-673.187052,0.00021917,2]
[372407962,1752633044234,-673.187052,0.00021917,2]
[372407963,1752633044244,-673.187052,0.00021917,2]
[372407964,1752633044255,-673.187052,0.00021917,2]
[372407965,1752633044265,-673.187052,0.00021917,2]
[372407966,1752633044275,-673.187052,0.00021917,2]
[372407967,1752633044285,-150.0,0.00021917,2]
[372407968,1752633044295,-460.0,0.00021917,2]
[372407969,1752633044305,-150.0,0.00021917,2]
[372407970,1752633044317,-460.0,0.00021917,2]
[372407971,1752633044327,-460.0,0.00021917,2]
[372407972,1752633044337,-793.63,0.00021917,2]
[372407973,1752633044347,-460.0,0.00021917,2]
[372407974,1752633044356,-460.0,0.00021917,2]
[372407975,1752633044365,-187.07473204,0.00021917,2]
[372407976,1752633044375,-1299.24,0.00021917,2]
[372407977,1752633044385,-460.0,0.00021917,2]
[372407978,1752633044398,-460.0,0.00021917,2]
[372407979,1752633044408,-500.0,0.00021917,2]
[372407980,1752633044417,-463.03389735,0.00021917,2]
[372407981,1752633044427,-460.0,0.00021917,2]
[372407982,1752633044438,-460.73077877,0.00021917,2]
[372407983,1752633044447,-487.39760669,0.00021917,2]
[372407984,1752633044457,-460.0,0.00021917,2]
[372407985,1752633044468,-460.0,0.00021917,2]
[372407986,1752633044478,-460.0,0.00021917,2]
[372407987,1752633044490,-460.0,0.00021917,2]
[372407988,1752633044499,-464.65592728,0.00021917,2]
[372407989,1752633044509,-460.0,0.00021917,2]
[372407990,1752633044518,-460.0,0.00021917,2]
[372407991,1752633044528,-460.0,0.00021917,2]
[372407992,1752633044538,-460.0,0.00021917,2]
[372407993,1752633044548,-596.99,0.00021917,2]
[372407994,1752633044557,-460.0,0.00021917,2]
[372407995,1752633044567,-466.17,0.00021917,2]
[372407996,1752633044576,-709.02,0.00021917,2]
[372407997,1752633044586,-1768.28,0.00021917,2]
[372407998,1752633044596,-1768.28,0.00021917,2]
[372407999,1752633044605,-460.0,0.00021917,2]
[372408000,1752633044615,-460.0,0.00021917,2]
[372408001,1752633044624,-460.0,0.00021917,2]
[372408002,1752633044634,-460.78709585,0.00021917,2]
[372408003,1752633044644,-460.0,0.00021917,2]
[372408004,1752633044653,-460.0,0.00021917,2]
[372408005,1752633044663,-762.72,0.00021917,2]
[372408006,1752633044673,-461.83715601,0.00021917,2]
[372408007,1752633044682,-460.0,0.00021917,2]
[372408008,1752633044691,-460.0,0.00021917,2]
[372408009,1752633044701,-450.55758241,0.00021917,2]
[372408010,1752633044711,-460.0,0.00021917,2]
[372408011,1752633044720,-460.0,0.00021917,2]
[372408012,1752633044731,-460.0,0.00021917,2]
[372408013,1752633044742,-460.0,0.00021917,2]
[372408014,1752633044752,-460.0,0.00021917,2]
[372408015,1752633044761,-460.0,0.00021917,2]
[372408016,1752633044772,-1025.63,0.00021917,2]
[372408017,1752633044782,-460.0,0.00021917,2]
[372408018,1752633044793,-460.0,0.00021917,2]
[372408019,1752633044804,-460.0,0.00021917,2]
[372408020,1752633044814,-460.0,0.00021917,2]
[372408021,1752633044825,-692.95,0.00021917,2]
[372408022,1752633044835,-491.01984688,0.00021917,2]
[372408023,1752633044846,-461.01339075,0.00021917,2]
[372408024,1752633044857,-1047.03,0.00021917,2]
[372408025,1752633044867,-460.0,0.00021917,2]
[372408026,1752633044878,-644.83,0.00021917,2]
[372408027,1752633044890,-460.0,0.00021917,2]
[372408028,1752633044902,-1442.3,0.00021917,2]
[372408029,1752633044913,-460.0,0.00021917,2]
[372408030,1752633044924,-460.0,0.00021917,2]
[372408031,1752633044939,-460.0,0.00021917,2]
[372408032,1752633044949,-658.41,0.00021917,2]
[372408033,1752633044960,-460.0,0.00021917,2]
[372408034,1752633044970,-460.0,0.00021917,2]
[372408035,1752633044982,-460.0,0.00021917,2]
[372408036,1752633044993,-489.2,0.00021917,2]
[372408037,1752633045003,-802.28,0.00021917,2]
[372408038,1752633045012,-460.0,0.00021917,2]
[372408039,1752633045022,-621.26,0.00021917,2]
[372408040,1752633045032,-213.29128716,0.00021917,2]
[372408041,1752633045041,-803.65,0.00021917,2]
[372408042,1752633045052,-460.0,0.00021917,2]
[372408043,1752633045061,-1338.78,0.00021917,2]
[372408044,1752633045071,-460.0,0.00021917,2]
[372408045,1752633045082,-989.4,0.00021917,2]
[372408046,1752633045092,-460.0,0.00021917,2]
[372408047,1752633045102,-724.05,0.00021917,2]
[372408048,1752633045112,-460.0,0.00021917,2]
[372408049,1752633045123,-460.0,0.00021917,2]
[372408050,1752633045134,-888.08,0.00021917,2]
[372408051,1752633045145,-460.0,0.00021917,2]
[372408052,1752633045156,-1500.0,0.00021917,7]
[372408053,1752633045166,-1500.0,0.00021917,7]
[372408054,1752633045176,-1500.0,0.00021917,7]
[372408055,1752633045187,-460.0,0.00021917,2]
[372408056,1752633045198,-1500.0,0.00021917,7]
[372408057,1752633045208,-1500.0,0.00021917,7]
[372408058,1752633045218,-1426.37,0.00021917,2]
[372408059,1752633045228,-1500.0,0.00021917,7]
[372408060,1752633045240,-460.0,0.00021917,2]
[372408061,1752633045250,-461.17897847,0.00021917,2]
[372408062,1752633045260,-1500.0,0.00021917,7]
[372408063,1752633045270,-941.2,0.00021917,2]
[372408064,1752633045280,-1500.0,0.00021917,7]
[372408065,1752633045289,-460.0,0.00021917,2]
[372408066,1752633045299,-460.0,0.00021917,2]
[372408067,1752633045308,-1500.0,0.00021917,7]
[372408068,1752633045317,-249.76905423,0.00021917,2]
[372408069,1752633045327,-460.0,0.00021917,2]
[372408070,1752633045336,-1500.0,0.00021917,7]
[372408071,1752633045345,-1500.0,0.00021917,7]
[372408072,1752633045355,-461.34255861,0.00021917,2]
[372408073,1752633045364,-1500.0,0.00021917,7]
[372408074,1752633045373,-460.0,0.00021917,2]
[372408075,1752633045382,-570.56,0.00021917,2]
[372408076,1752633045395,-1500.0,0.00021917,7]
[372408077,1752633045406,-1500.0,0.00021917,7]
[372408078,1752633045415,-1500.0,0.00021917,7]
[372408079,1752633045424,-541.43,0.00021917,2]
[372408080,1752633045434,-460.0,0.00021917,2]
[372408081,1752633045445,-1532.876172,0.00021917,7]
[372408082,1752633045457,-342.7654309,0.00021917,2]
[372408083,1752633045466,-460.0,0.00021917,2]
[372408084,1752633045589,-460.0,0.00021917,2]
[372408085,1752633045600,-817.43,0.00021917,2]
[372408086,1752633045611,-460.0,0.00021917,2]
[372408087,1752633045620,-460.0,0.00021917,2]
[372408088,1752633045630,-460.0,0.00021917,2]
[372408089,1752633045640,-460.0,0.00021917,2]
[372408090,1752633045650,-383.47158501,0.00021917,2]
[372408091,1752633045660,-460.0,0.00021917,2]
[372408092,1752633045670,-659.73,0.00021917,2]
[372408093,1752633045680,-151.0,0.00021917,2]
[372408094,1752633045689,-151.0,0.00021917,2]
[372408095,1752633045700,-460.0,0.00021917,2]
[372408096,1752633045710,-499.41,0.00021917,2]
[372408097,1752633045720,-151.0,0.00021917,2]
[372408098,1752633045731,-460.0,0.00021917,2]
[372408099,1752633045741,-612.58,0.00021917,2]
[372408101,1752633045750,-151.0,0.00021917,2]
[372408103,1752633045759,-151.0,0.00021917,2]
[372408104,1752633045768,-151.0,0.00021917,2]
[372408105,1752633045778,-151.0,0.00021917,2]
[372408106,1752633045789,-914.21,0.00021917,2]
[372408107,1752633045799,-451.26767718,0.00021917,2]
[372408108,1752633045808,-151.0,0.00021917,2]
[372408109,1752633045818,-460.0,0.00021917,2]
[372408110,1752633045827,-151.0,0.00021917,2]
[372408111,1752633045836,-182.510288,0.00021917,2]
[372408112,1752633045845,-460.0,0.00021917,2]
[372408113,1752633045856,-460.0,0.00021917,2]
[372408114,1752633045866,-460.0,0.00021917,2]
[372408115,1752633045876,-157.502393,0.00021917,2]
[372408116,1752633045886,-460.0,0.00021917,2]
[372408117,1752633045895,-460.0,0.00021917,2]
[372408118,1752633045905,-512.07,0.00021917,2]
[372408119,1752633045915,-1695.7,0.00021917,2]
[372408120,1752633045924,-512.07,0.00021917,2]
[372408121,1752633045934,-512.07,0.00021917,2]
[372408122,1752633045943,-512.07,0.00021917,2]
[372408123,1752633045954,-512.07,0.00021917,2]
[372408124,1752633045964,-512.07,0.00021917,2]
[372408125,1752633045974,-461.47165208,0.00021917,2]
[372408126,1752633045984,-512.07,0.00021917,2]
[372408127,1752633045993,-512.07,0.00021917,2]
[372408128,1752633046003,-460.0,0.00021917,2]
[372408129,1752633046012,-512.07,0.00021917,2]
[372408130,1752633046023,-460.48448806,0.00021917,2]
[372408131,1752633046032,-465.13955296,0.00021917,2]
[372408132,1752633046041,-460.0,0.00021917,2]
[372408133,1752633046050,-422.24460787,0.00021917,2]
[372408134,1752633046060,-460.0,0.00021917,2]
[372408135,1752633046071,-460.0,0.00021917,2]
[372408136,1752633046082,-1093.84,0.00021917,2]
[372408137,1752633046092,-460.0,0.00021917,2]
[372408138,1752633046103,-460.0,0.00021917,2]
[372408139,1752633046112,-460.0,0.00021917,2]
[372408140,1752633046123,-460.0,0.00021917,2]
[372408141,1752633046132,-460.0,0.00021917,2]
[372408142,1752633046141,-460.0,0.00021917,2]
[372408143,1752633046151,-252.14489683,0.00021917,2]
[372408144,1752633046164,-1200.09,0.00021917,2]
[372408145,1752633046175,-388.70770517,0.00021917,2]
[372408146,1752633046186,-1825.55,0.00021917,2]
[372408147,1752633046195,-460.0,0.00021917,2]
[372408148,1752633046204,-460.0,0.00021917,2]
[372408149,1752633046213,-462.24847389,0.00021917,2]
[372408150,1752633046223,-460.0,0.00021917,2]
[372408151,1752633046234,-460.0,0.00021917,2]
[372408152,1752633046243,-460.0,0.00021917,2]
[372408153,1752633046253,-1183.48,0.00021917,2]
[372408154,1752633046263,-460.0,0.00021917,2]
[372408155,1752633046272,-918.74,0.00021917,2]
[372408156,1752633046282,-628.2,0.00021917,2]
[372408157,1752633046291,-460.0,0.00021917,2]
[372408158,1752633046300,-1321.27,0.00021917,2]
[372408159,1752633046310,-460.0,0.00021917,2]
[372408160,1752633046319,-460.0,0.00021917,2]
[372408161,1752633046330,-460.0,0.00021917,2]
[372408162,1752633046340,-461.13195015,0.00021917,2]
[372408163,1752633046351,-494.67,0.00021917,2]
[372408164,1752633046361,-460.0,0.00021917,2]
[372408165,1752633046371,-460.0,0.00021917,2]
[372408166,1752633046381,-498.91380861,0.00021917,2]
[372408167,1752633046391,-481.68365117,0.00021917,2]
[372408168,1752633046403,-460.0,0.00021917,2]
[372408169,1752633046413,-460.0,0.00021917,2]
[372408170,1752633046424,-494.00736175,0.00021917,2]
[372408171,1752633046435,-460.0,0.00021917,2]
[372408172,1752633046445,-460.0,0.00021917,2]
[372408173,1752633046454,-151.0,0.00021917,2]
[372408174,1752633046467,-151.0,0.00021917,2]
[372408175,1752633046478,-670.34,0.00021917,2]
[372408176,1752633046488,-151.0,0.00021917,2]
[372408177,1752633046498,-460.0,0.00021917,2]
[372408178,1752633046510,-151.0,0.00021917,2]
[372408179,1752633046520,-151.0,0.00021917,2]
[372408180,1752633046529,-151.0,0.00021917,2]
[372408181,1752633046538,-460.0,0.00021917,2]
[372408182,1752633046547,-151.0,0.00021917,2]
[372408183,1752633046556,-460.0,0.00021917,2]
[372408184,1752633046565,-460.0,0.00021917,2]
[372408185,1752633046575,-460.0,0.00021917,2]
[372408186,1752633046584,-460.0,0.00021917,2]
[372408187,1752633046593,-1200.33,0.00021917,2]
[372408188,1752633046603,-460.0,0.00021917,2]
[372408189,1752633046612,-460.0,0.00021917,2]
[372408190,1752633046621,-165.286456,0.00021917,2]
[372408191,1752633046630,-460.0,0.00021917,2]
[372408192,1752633046639,-462.31976494,0.00021917,2]
[372408193,1752633046648,-460.0,0.00021917,2]
[372408194,1752633046657,-165.286456,0.00021917,2]
[372408195,1752633046667,-460.0,0.00021917,2]
[372408196,1752633046676,-165.286456,0.00021917,2]
[372408197,1752633046685,-165.286456,0.00021917,2]
[372408198,1752633046695,-460.0,0.00021917,2]
[372408199,1752633046704,-165.286456,0.00021917,2]
[372408200,1752633046712,-165.286456,0.00021917,2]
[372408201,1752633046720,-460.0,0.00021917,2]
[372408202,1752633046729,-165.286456,0.00021917,2]
[372408203,1752633046738,-460.0,0.00021917,2]
[372408204,1752633046747,-460.0,0.00021917,2]
[372408205,1752633046758,-494.66986843,0.00021917,2]
[372408206,1752633046766,-165.286456,0.00021917,2]
[372408207,1752633046775,-165.286456,0.00021917,2]
[372408208,1752633046783,-460.0,0.00021917,2]
[372408209,1752633046791,-165.286456,0.00021917,2]
[372408210,1752633046799,-460.0,0.00021917,2]
[372408211,1752633046807,-460.0,0.00021917,2]
[372408212,1752633046816,-1153.72,0.00021917,2]
[372408213,1752633046824,-165.286456,0.00021917,2]
[372408214,1752633046832,-461.41306093,0.00021917,2]
[372408215,1752633046841,-460.0,0.00021917,2]
[372408216,1752633046849,-165.286456,0.00021917,2]
[372408217,1752633046857,-165.286456,0.00021917,2]
[372408218,1752633046867,-460.0,0.00021917,2]
[372408219,1752633046875,-165.286456,0.00021917,2]
[372408220,1752633046883,-460.0,0.00021917,2]
[372408221,1752633046889,-460.0,0.00021917,2]
[372408222,1752633046897,-460.0,0.00021917,2]
[372408223,1752633046905,-753.3,0.00021917,2]
[372408224,1752633046914,-226.204737,0.00021917,2]
[372408225,1752633046920,-226.204737,0.00021917,2]
[372408226,1752633046928,-460.0,0.00021917,2]
[372408227,1752633046937,-226.204737,0.00021917,2]
[372408228,1752633046946,-1097.54,0.00021917,2]
[372408229,1752633046956,-460.0,0.00021917,2]
[372408230,1752633046965,-226.204737,0.00021917,2]
[372408231,1752633046974,-226.204737,0.00021917,2]
[372408232,1752633046983,-460.0,0.00021917,2]
[372408233,1752633046993,-463.03234793,0.00021917,2]
[372408234,1752633047003,-226.204737,0.00021917,2]
[372408235,1752633047013,-680.81,0.00021917,2]
[372408236,1752633047022,-460.0,0.00021917,2]
[372408237,1752633047032,-461.63219347,0.00021917,2]
[372408238,1752633047042,-460.0,0.00021917,2]
[372408239,1752633047051,-151.0,0.00021917,2]
[372408240,1752633047061,-226.204737,0.00021917,2]
[372408241,1752633047071,-151.0,0.00021917,2]
[372408242,1752633047081,-226.204737,0.00021917,2]
[372408243,1752633047091,-182.940037,0.00021917,2]
[372408244,1752633047100,-226.204737,0.00021917,2]
[372408245,1752633047110,-226.204737,0.00021917,2]
[372408246,1752633047119,-790.76,0.00021917,2]
[372408247,1752633047128,-226.204737,0.00021917,2]
[372408248,1752633047138,-683.37,0.00021917,2]
[372408249,1752633047147,-226.204737,0.00021917,2]
[372408250,1752633047156,-464.60695455,0.00021917,2]
[372408251,1752633047166,-460.0,0.00021917,2]
[372408252,1752633047175,-460.0,0.00021917,2]
[372408253,1752633047185,-460.0,0.00021917,2]
[372408254,1752633047194,-531.23,0.00021917,2]
[372408255,1752633047203,-847.32,0.00021917,2]
[372408256,1752633047212,-460.0,0.00021917,2]
[372408257,1752633047222,-1459.12,0.00021917,2]
[372408258,1752633047231,-460.0,0.00021917,2]
[372408259,1752633047242,-460.0,0.00021917,2]
[372408260,1752633047251,-463.19245736,0.00021917,2]
[372408261,1752633047260,-463.10860935,0.00021917,2]
[372408262,1752633047269,-460.0,0.00021917,2]
[372408263,1752633047279,-558.38,0.00021917,2]
[372408264,1752633047288,-151.0,0.00021917,2]
[372408265,1752633047298,-460.0,0.00021917,2]
[372408266,1752633047307,-152.1268,0.00021917,2]
[372408267,1752633047316,-460.0,0.00021917,2]
[372408268,1752633047325,-470.14,0.00021917,2]
[372408269,1752633047334,-460.0,0.00021917,2]
[372408270,1752633047343,-154.332738,0.00021917,2]
[372408271,1752633047352,-1352.04,0.00021917,2]
[372408272,1752633047361,-460.0,0.00021917,2]
[372408273,1752633047370,-460.0,0.00021917,2]
[372408274,1752633047379,-2592.67,0.00021917,2]
[372408275,1752633047394,-151.0,0.00021917,2]
[372408276,1752633047413,-533.28,0.00021917,2]
[372408277,1752633047433,-151.0,0.00021917,2]
[372408278,1752633047453,-151.0,0.00021917,2]
[372408279,1752633047468,-155.406374,0.00021917,2]
[372408280,1752633047478,-460.0,0.00021917,2]
[372408281,1752633047489,-151.0,0.00021917,2]
[372408282,1752633047499,-631.23,0.00021917,2]
[372408283,1752633047508,-460.0,0.00021917,2]
[372408284,1752633047517,-220.904282,0.00021917,2]
[372408285,1752633047526,-460.0,0.00021917,2]
[372408286,1752633047535,-460.0,0.00021917,2]
[372408287,1752633047544,-460.0,0.00021917,2]
[372408288,1752633047553,-460.0,0.00021917,2]
[372408289,1752633047562,-483.81,0.00021917,2]
[372408290,1752633047571,-460.0,0.00021917,2]
[372408291,1752633047580,-460.0,0.00021917,2]
[372408292,1752633047589,-1493.66,0.00021917,2]
[372408293,1752633047599,-825.22,0.00021917,2]
[372408294,1752633047608,-460.0,0.00021917,2]
[372408295,1752633047617,-1381.07,0.00021917,2]
[372408296,1752633047626,-460.0,0.00021917,2]
[372408297,1752633047636,-507.71,0.00021917,2]
[372408298,1752633047645,-561.13,0.00021917,2]
[372408299,1752633047654,-501.41538732,0.00021917,2]
[372408300,1752633047663,-462.41125172,0.00021917,2]
[372408301,1752633047673,-460.0,0.00021917,2]
[372408302,1752633047682,-611.83,0.00021917,2]
[372408303,1752633047691,-460.0,0.00021917,2]
[372408304,1752633047700,-460.0,0.00021917,2]
[372408305,1752633047710,-460.0,0.00021917,2]
[372408306,1752633047719,-460.0,0.00021917,2]
[372408307,1752633047728,-460.76459641,0.00021917,2]
[372408308,1752633047738,-601.86,0.00021917,2]
[372408309,1752633047747,-502.48,0.00021917,2]
[372408310,1752633047756,-461.71486257,0.00021917,2]
[372408311,1752633047766,-1658.55,0.00021917,2]
[372408312,1752633047775,-875.99,0.00021917,2]
[372408313,1752633047784,-460.0,0.00021917,2]
[372408314,1752633047793,-1366.8,0.00021917,2]
[372408315,1752633047803,-1658.08,0.00021917,2]
[372408316,1752633047812,-1442.77,0.00021917,2]
[372408317,1752633047822,-460.0,0.00021917,2]
[372408318,1752633047831,-769.04,0.00021917,2]
[372408319,1752633047840,-460.0,0.00021917,2]
[372408320,1752633047850,-460.0,0.00021917,2]
[372408321,1752633047859,-460.0,0.00021917,2]
[372408322,1752633047867,-460.0,0.00021917,2]
[372408323,1752633047876,-460.0,0.00021917,2]
[372408324,1752633047885,-535.04,0.00021917,2]
[372408325,1752633047895,-460.0,0.00021917,2]
[372408326,1752633047903,-556.87,0.00021917,2]
[372408327,1752633047913,-460.0,0.00021917,2]
[372408328,1752633047922,-460.0,0.00021917,2]
[372408329,1752633047931,-460.0,0.00021917,2]
[372408330,1752633047940,-460.0,0.00021917,2]
[372408331,1752633047949,-500.0,0.00021917,2]
[372408332,1752633047959,-510.33223738,0.00021917,2]
[372408333,1752633047967,-1635.82,0.00021917,2]
[372408334,1752633047977,-460.0,0.00021917,2]
[372408335,1752633047987,-921.31,0.00021917,2]
[372408336,1752633047996,-460.0,0.00021917,2]
[372408337,1752633048006,-460.0,0.00021917,2]
[372408338,1752633048015,-460.0,0.00021917,2]
[372408339,1752633048024,-460.0,0.00021917,2]
[372408340,1752633048033,-460.0,0.00021917,2]
[372408341,1752633048043,-460.0,0.00021917,2]
[372408342,1752633048053,-528.41,0.00021917,2]
[372408343,1752633048063,-478.96,0.00021917,2]
[372408344,1752633048072,-461.27877351,0.00021917,2]
[372408345,1752633048082,-460.0,0.00021917,2]
[372408346,1752633048091,-151.0,0.00021917,2]
[372408347,1752633048100,-460.0,0.00021917,2]
[372408348,1752633048110,-151.0,0.00021917,2]
[372408349,1752633048120,-151.0,0.00021917,2]
[372408350,1752633048129,-151.0,0.00021917,2]
[372408351,1752633048139,-516.69791056,0.00021917,2]
[372408352,1752633048149,-151.0,0.00021917,2]
[372408353,1752633048159,-151.0,0.00021917,2]
[372408354,1752633048169,-460.0,0.00021917,2]
[372408355,1752633048178,-1157.99,0.00021917,2]
[372408356,1752633048188,-460.0,0.00021917,2]
[372408357,1752633048198,-460.0,0.00021917,2]
[372408358,1752633048207,-460.0,0.00021917,2]
[372408359,1752633048217,-460.0,0.00021917,2]
[372408360,1752633048226,-3058.87,0.00021917,2]
[372408361,1752633048236,-460.0,0.00021917,2]
[372408362,1752633048247,-460.0,0.00021917,2]
[372408363,1752633048258,-460.0,0.00021917,2]
[372408364,1752633048267,-460.0,0.00021917,2]
[372408365,1752633048277,-460.0,0.00021917,2]
[372408366,1752633048287,-460.0,0.00021917,2]
[372408367,1752633048296,-460.0,0.00021917,2]
[372408368,1752633048305,-460.0,0.00021917,2]
[372408369,1752633048315,-998.52,0.00021917,2]
[372408370,1752633048324,-460.0,0.00021917,2]
[372408371,1752633048333,-460.0,0.00021917,2]
[372408372,1752633048342,-460.0,0.00021917,2]
[372408373,1752633048352,-255.60130153,0.00021917,2]
[372408374,1752633048362,-582.93,0.00021917,2]
[372408375,1752633048371,-579.3,0.00021917,2]
[372408376,1752633048381,-460.0,0.00021917,2]
[372408377,1752633048392,-460.0,0.00021917,2]
[372408378,1752633048403,-460.0,0.00021917,2]
[372408379,1752633048412,-460.0,0.00021917,2]
[372408380,1752633048422,-460.0,0.00021917,2]
[372408381,1752633048431,-460.0,0.00021917,2]
[372408382,1752633048442,-466.04921602,0.00021917,2]
[372408383,1752633048451,-460.0,0.00021917,2]
[372408384,1752633048461,-1357.78,0.00021917,2]
[372408385,1752633048475,-848.54,0.00021917,2]
[372408386,1752633048485,-460.0,0.00021917,2]
[372408387,1752633048498,-151.886281,0.00021917,2]
[372408388,1752633048508,-460.0,0.00021917,2]
[372408389,1752633048517,-595.32,0.00021917,2]
[372408390,1752633048527,-1036.02,0.00021917,2]
[372408391,1752633048536,-460.0,0.00021917,2]
[372408392,1752633048546,-460.0,0.00021917,2]
[372408393,1752633048555,-460.0,0.00021917,2]
[372408394,1752633048564,-460.0,0.00021917,2]
[372408395,1752633048574,-2085.08,0.00021917,2]
[372408396,1752633048583,-460.0,0.00021917,2]
[372408397,1752633048593,-835.244334,0.00021917,2]